bitfinex/quotes_ETHUSD_20250210
["timestamp","ask_amount","ask_price","bid_price","bid_amount"]
[1739152418541,3.87406,2581.3,2580.6,3.87506]
[1739152419119,0.7685,2581.7,2580.3,1.61153169]
[1739152419120,3.87471,2580.9,2580.3,1.61153169]
[1739152419325,3.87422,2581.2,2580.3,0.831]
[1739152419554,3.87476,2580.9,2580.3,0.831]
[1739152419860,3.87476,2580.9,2580.3,4.70649]
[1739152420037,3.87476,2580.9,2580.3,0.831]
[1739152420239,3.87534,2580.5,2579.8,4.70724]
[1739152420833,3.8754,2580.4,2579.8,4.70724]
[1739152421158,3.87534,2580.5,2579.8,5.46578124]
[1739152421456,3.87534,2580.5,2579.8,9.34195124]
[1739152421648,3.87534,2580.5,2579.8,5.46571124]
[1739152421979,3.87534,2580.5,2579.8,4.70717]
[1739152422127,3.87594,2580.1,2579.4,5.47586215]
[1739152422324,3.87594,2580.1,2579.0,4.70842]
[1739152422325,3.87644,2579.7,2579.0,4.70842]
[1739152422549,3.87611,2579.9,2579.2,3.87713]
[1739152422861,0.7685,2580.1,2579.0,0.831]
[1739152423026,3.87676,2579.5,2579.0,0.831]
[1739152423227,3.87697,2579.4,2578.8,0.1449142]
[1739152423534,3.87698,2579.4,2578.8,0.92284754]
[1739152423774,7.75329,2579.6,2578.8,0.92284754]
[1739152424060,3.87658,2579.6,2578.9,3.87761]
[1739152424238,3.87673,2579.5,2578.9,3.87761]
[1739152424563,4.64437,2580.1,2578.8,0.92284754]
[1739152424564,3.0,2580.0,2578.8,0.92284754]
[1739152424857,3.87747,2579.0,2578.8,0.1449142]
[1739152425241,3.87762,2578.9,2578.8,0.1449142]
[1739152426162,4.64612,2578.9,2578.8,0.1449142]
[1739152426470,4.64612,2578.9,2578.8,4.2e-06]
[1739152426471,7.64612,2578.9,2578.8,4.2e-06]
[1739152426756,8.58641505,2578.9,2578.8,4.2e-06]
[1739152427526,4.64612,2578.9,2578.8,4.2e-06]
[1739152427727,3.87762,2578.9,2578.8,4.2e-06]
[1739152428162,3.87745,2579.1,2578.8,4.2e-06]
[1739152428363,4.69717,2579.3,2578.8,4.2e-06]
[1739152428549,3.87707,2579.3,2578.8,4.2e-06]
[1739152428761,4.69658,2579.7,2578.9,3.8775]
[1739152429089,3.87592,2580.1,2579.1,3.87732]
[1739152429230,3.87626,2579.9,2579.1,3.87732]
[1739152429426,3.87624,2579.9,2579.1,3.87732]
[1739152429728,3.87631,2579.8,2579.1,3.87732]
[1739152430550,3.87624,2579.9,2579.1,3.87732]
[1739152430813,3.87624,2579.9,2579.1,4.730391]
[1739152431042,0.8201,2580.6,2579.1,0.89183479]
[1739152431189,3.87555,2580.3,2579.6,3.87655]
[1739152431620,3.87573,2580.2,2579.4,3.87685]
[1739152431798,3.87573,2580.2,2579.5,3.87669]
[1739152432001,3.87588,2580.1,2579.4,3.87685]
[1739152432403,3.87588,2580.1,2579.5,3.87671]
[1739152432605,3.87555,2580.3,2579.4,3.87685]
[1739152432800,3.87523,2580.5,2579.4,0.465265]
[1739152432985,3.87499,2580.7,2579.9,0.8213]
[1739152433191,3.87516,2580.6,2580.0,3.87595]
[1739152433794,3.8755,2580.4,2579.9,0.8213]
[1739152434000,3.8755,2580.4,2579.5,3.87666]
[1739152434222,3.8755,2580.4,2579.6,3.87645]
[1739152434423,3.87553,2580.3,2579.6,3.87645]
[1739152434939,3.8755,2580.4,2579.7,3.87636]
[1739152435093,3.87482,2580.8,2579.9,3.87609]
[1739152435287,3.87482,2580.8,2579.8,0.0387593]
[1739152435288,3.87494,2580.7,2580.2,0.8213]
[1739152435611,3.87482,2580.8,2580.2,0.8213]
[1739152436211,7.74973,2580.8,2580.2,0.8213]
[1739152436399,3.87482,2580.8,2580.2,0.8213]
[1739152436801,7.74972,2580.8,2580.2,0.8213]
[1739152437014,3.87482,2580.8,2580.2,0.8213]
[1739152437226,3.8745,2581.0,2580.2,1.291012]
[1739152437425,0.7562,2582.0,2580.6,0.8213]
[1739152437825,3.87443,2581.1,2580.6,0.8213]
[1739152438018,3.87439,2581.1,2580.6,0.8213]
[1739152438217,3.87408,2581.3,2580.6,0.8213]
[1739152438530,3.87417,2581.2,2580.6,0.8213]
[1739152439027,3.87455,2581.0,2580.6,0.8213]
[1739152439235,3.87489,2580.8,2580.2,0.8213]
[1739152439393,3.87503,2580.7,2580.2,0.8213]
[1739152439599,3.87507,2580.6,2580.2,0.8213]
[1739152440224,4.63069,2581.0,2580.2,0.8213]
[1739152440430,3.87401,2581.3,2580.3,0.50845159]
[1739152440596,3.87487,2580.8,2580.2,0.8213]
[1739152440932,3.87523,2580.5,2580.2,0.8213]
[1739152441231,3.87523,2580.5,2579.8,0.8213]
[1739152441395,3.87564,2580.3,2579.8,0.8213]
[1739152441727,3.87563,2580.3,2579.8,0.8213]
[1739152441929,3.87567,2580.2,2579.8,0.8213]
[1739152442239,3.87595,2580.1,2579.4,0.8213]
[1739152442400,3.87595,2580.1,2579.4,4.69813]
[1739152442601,3.87595,2580.1,2579.4,0.8213]
[1739152442896,3.87586,2580.1,2579.4,0.8213]
[1739152443109,4.263193,2580.3,2579.6,3.87647]
[1739152443831,4.263193,2580.3,2579.5,3.87669]
[1739152443832,3.87493,2580.7,2580.0,3.87582]
[1739152444023,4.63061,2581.1,2580.2,3.87552]
[1739152444202,0.7562,2581.4,2580.2,3.87552]
[1739152444404,3.87401,2581.3,2580.1,0.8213]
[1739152444705,3.87591,2580.1,2579.8,0.8213]
[1739152444910,3.87591,2580.1,2579.4,4.67160165]
[1739152445097,4.63178,2580.3,2579.5,3.87671]
[1739152445297,3.87558,2580.3,2579.6,3.9152302]
[1739152445537,3.8757,2580.2,2579.6,0.0387602]
[1739152445717,3.87584,2580.1,2579.4,4.67159165]
[1739152445928,3.87597,2580.0,2579.4,4.67157165]
[1739152446527,3.87584,2580.1,2579.4,4.67157165]
[1739152446735,7.75178,2580.1,2579.4,4.67157165]
[1739152446916,3.87612,2579.9,2579.3,4.69831]
[1739152447246,3.87612,2579.9,2579.3,4.6983]
[1739152447596,3.87601,2580.0,2579.3,4.6983]
[1739152447926,3.87584,2580.1,2579.4,3.87686]
[1739152448334,0.7562,2580.8,2579.4,0.03876133]
[1739152448534,3.87552,2580.3,2579.7,3.87637]
[1739152449196,3.87621,2579.9,2579.5,0.8157]
[1739152449417,3.87525,2580.5,2579.7,3.87629]
[1739152449621,3.87554,2580.3,2579.7,3.87629]
[1739152449856,3.87495,2580.7,2580.2,0.8157]
[1739152450061,3.87469,2580.9,2580.2,0.8157]
[1739152450221,3.87493,2580.7,2580.2,0.8157]
[1739152450767,3.87532,2580.5,2579.8,0.8157]
[1739152450925,3.87581,2580.2,2579.8,0.8157]
[1739152451121,7.75032,2580.6,2579.9,3.87602]
[1739152451356,0.387493,2580.7,2579.9,3.87602]
[1739152451357,3.87484,2580.8,2580.1,3.87581]
[1739152451653,3.87494,2580.7,2579.9,3.87604]
[1739152451859,3.87561,2580.3,2579.8,0.8157]
[1739152452055,0.387494,2580.7,2579.8,0.8157]
[1739152452355,3.87643,2579.7,2579.4,0.8157]
[1739152452733,3.87581,2580.1,2579.5,3.87666]
[1739152453444,3.87609,2580.0,2579.4,0.8157]
[1739152453652,3.87581,2580.1,2579.4,4.69254]
[1739152453836,3.87581,2580.1,2579.6,3.87655]
[1739152454158,3.87558,2580.3,2579.6,3.87641]
[1739152454353,7.75121,2580.3,2579.6,3.87641]
[1739152454558,0.792,2580.6,2579.4,9.43009128]
[1739152454756,3.87599,2580.0,2579.4,4.69246]
[1739152454956,3.8759,2580.1,2579.4,0.8157]
[1739152454957,3.87612,2579.9,2579.4,0.8157]
[1739152455164,7.75236,2579.9,2579.4,0.8157]
[1739152455352,3.87651,2579.7,2579.4,0.8157]
[1739152455961,3.87651,2579.7,2579.1,4.64973128]
[1739152455962,3.87705,2579.3,2579.0,0.8157]
[1739152456636,3.87673,2579.5,2579.0,0.8157]
[1739152456841,3.87699,2579.4,2579.0,0.8157]
[1739152457442,3.87673,2579.5,2579.0,0.8157]
[1739152457649,3.87703,2579.3,2579.0,0.8157]
[1739152458668,0.792,2579.9,2579.0,0.8157]
[1739152458869,3.87624,2579.9,2579.3,3.87701]
[1739152459170,3.87565,2580.3,2579.7,3.87631]
[1739152459490,3.87565,2580.3,2579.6,0.8157]
[1739152459491,0.387494,2580.7,2579.6,0.8157]
[1739152459691,3.87657,2579.6,2579.2,0.8157]
[1739152460095,3.87701,2579.4,2578.9,1.60402909]
[1739152460389,3.87701,2579.4,2578.9,0.8157]
[1739152460600,3.87727,2579.2,2578.9,0.8157]
[1739152461273,3.87698,2579.4,2578.9,0.8157]
[1739152461468,3.87667,2579.6,2579.0,3.87741]
[1739152461686,3.87687,2579.4,2578.9,0.8157]
[1739152462088,3.87742,2579.1,2578.9,0.8157]
[1739152462288,3.87742,2579.1,2578.8,4.2e-06]
[1739152462289,7.75488,2579.1,2578.8,4.2e-06]
[1739152462635,3.87707,2579.3,2578.8,4.2e-06]
[1739152462840,3.87652,2579.7,2579.0,3.87736]
[1739152463252,3.87673,2579.5,2579.0,3.87736]
[1739152463452,3.87673,2579.5,2578.8,3.8777142]
[1739152463453,3.87688,2579.4,2578.8,3.8777142]
[1739152464180,3.87673,2579.5,2578.9,3.87757]
[1739152464405,3.87584,2580.1,2579.2,3.15491468]
[1739152464603,3.87549,2580.4,2579.7,3.87629]
[1739152464966,3.87564,2580.3,2579.7,3.87629]
[1739152465284,3.87587,2580.1,2579.6,0.8157]
[1739152465580,3.87598,2580.0,2579.6,0.8157]
[1739152465802,3.87554,2580.3,2579.6,1.284956]
[1739152465961,3.87507,2580.6,2579.8,3.87626]
[1739152466303,3.87404,2581.3,2580.5,4.69089]
[1739152466497,3.87464,2580.9,2580.5,0.8157]
[1739152466798,3.87422,2581.2,2580.5,4.69081]
[1739152467096,0.55,2581.4,2580.9,3.87451]
[1739152468247,0.55,2581.4,2580.8,3.87475]
[1739152468553,0.55,2581.4,2580.7,1.3657]
[1739152468554,3.87417,2581.2,2580.7,0.8157]
[1739152468901,3.87432,2581.1,2580.7,0.8157]
[1739152469197,3.87415,2581.3,2580.7,0.8157]
[1739152469400,0.55,2581.4,2580.8,3.87465]
[1739152469603,0.55,2581.4,2580.7,1.284789]
[1739152469781,3.87432,2581.1,2580.7,0.8157]
[1739152470467,4.42397,2581.4,2580.7,4.69057]
[1739152470668,3.87427,2581.2,2580.7,0.8157]
[1739152470979,3.87476,2580.8,2580.2,0.8157]
[1739152471174,0.829824,2581.2,2579.6,0.469256]
[1739152471383,3.0,2581.2,2579.7,0.8157]
[1739152471550,3.87614,2579.9,2579.7,1.59356958]
[1739152471882,3.87608,2580.0,2579.2,7.38161103]
[1739152471883,3.87627,2579.8,2579.3,0.8157]
[1739152472457,3.87566,2580.3,2579.3,4.73135356]
[1739152472652,3.87566,2580.3,2579.5,0.55]
[1739152472894,7.75132,2580.3,2579.6,4.31914]
[1739152473094,0.792,2580.7,2579.6,0.44268]
[1739152473295,3.87461,2580.9,2580.1,3.87578]
[1739152473588,3.87461,2580.9,2580.2,4.69136]
[1739152473793,3.87436,2581.1,2580.4,3.87536]
[1739152474314,1.342,2581.4,2580.2,0.8157]
[1739152474486,3.87548,2580.4,2580.2,0.8157]
[1739152474805,3.87551,2580.3,2579.7,0.8157]
[1739152474991,3.87551,2580.3,2579.7,5.97585455]
[1739152475591,3.87401,2581.3,2579.7,0.8157]
[1739152475825,3.87401,2581.3,2579.4,3.0]
[1739152475826,3.87614,2579.9,2579.3,3.87696]
[1739152476147,3.87642,2579.7,2579.3,0.7595]
[1739152476424,3.87616,2579.9,2579.3,0.7595]
[1739152476603,3.87646,2579.7,2579.3,0.7595]
[1739152476803,3.87668,2579.6,2579.0,0.7595]
[1739152477186,3.87682,2579.5,2579.0,0.7595]
[1739152477620,3.87581,2580.1,2579.0,0.7595]
[1739152477918,3.87685,2579.5,2579.0,0.7595]
[1739152478435,3.87646,2579.7,2579.0,1.22322242]
[1739152478645,3.87618,2579.9,2579.2,3.8771]
[1739152479436,3.87654,2579.7,2579.1,3.87731]
[1739152479638,3.87562,2580.3,2579.6,3.87647]
[1739152479819,0.8015,2580.6,2579.7,0.7595]
[1739152480013,3.87594,2580.1,2579.7,0.7595]
[1739152480218,3.87604,2580.0,2579.7,0.7595]
[1739152480413,3.87594,2580.1,2579.7,0.7595]
[1739152480614,4.67664,2580.6,2579.0,3.87737]
[1739152480809,3.87639,2579.8,2579.1,0.7595]
[1739152481311,3.87666,2579.6,2579.1,0.7595]
[1739152482248,3.87666,2579.6,2579.2,0.77775706]
[1739152482728,3.87666,2579.6,2579.1,0.7595]
[1739152483059,3.87682,2579.5,2579.1,0.7595]
[1739152483265,3.87666,2579.6,2579.1,0.7595]
[1739152484455,7.75333,2579.6,2579.1,0.7595]
[1739152484638,7.75335,2579.6,2579.1,0.7595]
[1739152484842,3.87697,2579.4,2579.1,0.7595]
[1739152485040,3.87717,2579.2,2578.8,4.2e-06]
[1739152485349,3.87667,2579.6,2579.0,3.87744]
[1739152485505,3.87674,2579.5,2579.0,3.87744]
[1739152485706,3.87667,2579.6,2579.0,3.87744]
[1739152486350,1.03439238,2582.0,2578.8,3.8777642]
[1739152486351,1.59610071,2580.8,2578.9,0.7595]
[1739152486546,3.87576,2580.2,2579.7,3.87641]
[1739152486732,3.87576,2580.2,2579.6,0.7595]
[1739152486933,3.87613,2579.9,2579.6,0.7595]
[1739152487135,3.87655,2579.7,2579.0,0.7595]
[1739152487447,3.87673,2579.5,2579.0,5.83884952]
[1739152487639,3.87655,2579.7,2579.1,3.87723]
[1739152487836,3.8766,2579.6,2579.1,3.87723]
[1739152488036,3.87652,2579.7,2579.1,3.87731]
[1739152488437,7.75307,2579.7,2579.1,3.87731]
[1739152488642,7.75305,2579.7,2579.1,3.87731]
[1739152488852,3.87673,2579.5,2579.0,0.7595]
[1739152489550,3.87697,2579.4,2579.0,0.7595]
[1739152490887,3.87704,2579.3,2579.0,0.7595]
[1739152491175,3.87704,2579.3,2578.8,4.2e-06]
[1739152491176,3.87697,2579.4,2578.8,4.2e-06]
[1739152491391,0.8015,2580.1,2578.8,0.54831764]
[1739152491652,7.75266,2579.8,2579.2,3.82706]
[1739152491853,3.876,2580.0,2579.2,3.82706]
[1739152492027,3.87638,2579.8,2579.2,3.82706]
[1739152492545,0.8015,2580.1,2579.2,3.82706]
[1739152492546,0.8015,2580.1,2579.2,11.63151]
[1739152492739,3.87507,2580.6,2580.0,3.87589]
[1739152492921,3.87446,2581.1,2580.2,3.87554]
[1739152493125,3.87473,2580.9,2580.2,3.87554]
[1739152493343,1.3101,2581.4,2580.1,0.8211]
[1739152493344,3.87566,2580.2,2580.1,0.8211]
[1739152493656,3.87465,2580.9,2580.1,4.69682]
[1739152493860,3.87436,2581.1,2580.4,3.87533]
[1739152494156,3.87462,2580.9,2580.3,3.87546]
[1739152494353,3.87516,2580.6,2580.1,0.8211]
[1739152494518,3.87495,2580.7,2580.1,4.6969]
[1739152495062,3.87464,2580.9,2580.2,3.87564]
[1739152495443,3.87464,2580.9,2580.2,7.7512]
[1739152495646,3.87436,2581.1,2580.5,3.87511]
[1739152496160,3.87409,2581.3,2580.8,0.8211]
[1739152496370,0.55,2581.4,2580.8,0.8211]
[1739152497039,0.55,2581.4,2581.2,3.87413]
[1739152497449,0.55,2581.4,2581.3,3.87401]
[1739152498177,0.55,2581.4,2581.2,3.87413]
[1739152498765,0.55,2581.4,2581.0,3.87444]
[1739152498977,0.55,2581.4,2580.8,4.69579]
[1739152498978,4.42387,2581.4,2580.8,4.69579]
[1739152499131,4.866257,2581.4,2580.8,0.8211]
[1739152499333,3.87428,2581.2,2580.5,0.8211]
[1739152499646,4.866257,2581.4,2580.6,3.87497]
[1739152499846,3.87401,2581.3,2580.2,0.8211]
[1739152500035,3.87472,2580.9,2580.2,4.69676]
[1739152500346,3.87472,2580.9,2580.3,3.87537]
[1739152500554,3.8744,2581.1,2580.4,3.87535]
[1739152500750,0.7601,2581.0,2579.9,3.87604]
[1739152500942,0.7601,2581.0,2579.5,0.8211]
[1739152501152,0.7601,2581.0,2579.6,3.87646]
[1739152501153,3.87543,2580.4,2579.6,3.87646]
[1739152501356,3.87562,2580.3,2579.6,3.87646]
[1739152501667,3.8761,2580.0,2579.5,0.8211]
[1739152501969,3.87673,2579.5,2579.2,1.57953796]
[1739152502141,3.87648,2579.7,2579.2,0.8211]
[1739152502352,3.87634,2579.8,2578.8,0.8211042]
[1739152502543,3.87736,2579.1,2578.8,0.8211042]
[1739152502752,3.87702,2579.3,2578.8,0.8211042]
[1739152503075,3.87734,2579.1,2578.8,0.8211042]
[1739152503372,3.87734,2579.1,2578.8,4.2e-06]
[1739152503569,0.387702,2579.3,2578.8,4.2e-06]
[1739152503770,3.87762,2578.9,2578.8,4.2e-06]
[1739152505232,4.63772,2578.9,2578.8,4.2e-06]
[1739152507573,3.87689,2579.4,2578.8,4.2e-06]
[1739152507760,3.87728,2579.2,2578.8,4.2e-06]
[1739152507956,3.87729,2579.2,2578.8,4.2e-06]
[1739152508175,3.87745,2579.1,2578.8,4.2e-06]
[1739152509256,4.70816,2579.7,2578.8,4.2e-06]
[1739152509435,3.87746,2579.1,2578.8,4.2e-06]
[1739152509640,7.75492,2579.1,2578.8,4.2e-06]
[1739152509890,3.87746,2579.1,2578.8,4.2e-06]
[1739152510051,3.87762,2578.9,2578.8,4.2e-06]
[1739152510261,7.70922,2578.9,2578.8,4.2e-06]
[1739152511564,8.55922,2578.9,2578.8,4.2e-06]
[1739152511799,3.8798,2577.5,2577.1,0.005]
[1739152512139,3.88015,2577.3,2577.1,0.005]
[1739152512345,3.88018,2577.2,2577.1,0.005]
[1739152512556,4.43265305,2577.2,2577.1,0.005]
[1739152514248,7.43265305,2577.2,2577.1,0.005]
[1739152515575,7.43265305,2577.2,2577.1,1e-05]
[1739152518685,3.87975,2577.5,2577.1,1e-05]
[1739152518871,3.87963,2577.6,2577.1,1e-05]
[1739152519072,3.87914,2577.9,2577.2,0.782]
[1739152519270,3.87914,2577.9,2577.2,4.66205]
[1739152519651,3.87928,2577.8,2577.2,1.636227]
[1739152519896,3.87914,2577.9,2577.2,5.516297]
[1739152520214,3.0,2578.2,2577.2,0.782]
[1739152520372,3.88018,2577.2,2577.1,1e-05]
[1739152520572,3.87992,2577.4,2577.1,1e-05]
[1739152520841,3.87973,2577.5,2577.1,1e-05]
[1739152520957,3.87925,2577.9,2577.1,1e-05]
[1739152521293,3.87925,2577.9,2577.3,3.87997]
[1739152521652,3.87848,2578.4,2577.5,3.87972]
[1739152521854,3.87869,2578.2,2577.5,3.87972]
[1739152522094,4.67222,2578.8,2577.4,0.784]
[1739152522387,3.87947,2577.7,2577.4,0.784]
[1739152522601,3.87933,2577.8,2577.4,0.784]
[1739152522916,3.87958,2577.6,2577.4,0.784]
[1739152523050,3.87972,2577.5,2577.4,0.784]
[1739152523262,3.87822,2578.5,2577.1,0.78401]
[1739152523263,0.7944,2578.1,2577.1,0.78401]
[1739152523480,3.88018,2577.2,2577.1,1e-05]
[1739152524165,4.67458,2577.2,2577.1,1e-05]
[1739152524387,5.23518705,2577.2,2577.1,1e-05]
[1739152524787,8.23518705,2577.2,2577.1,1e-05]
[1739152525115,3.88018,2577.2,2577.1,1e-05]
[1739152525614,3.87977,2577.5,2577.1,1e-05]
[1739152525838,3.87915,2577.9,2577.1,1e-05]
[1739152525839,3.88018,2577.2,2577.1,1e-05]
[1739152527105,6.88018,2577.2,2577.1,1e-05]
[1739152528005,3.88018,2577.2,2577.1,1e-05]
[1739152531944,3.87976,2577.5,2577.1,1e-05]
[1739152532158,3.87949,2577.7,2577.1,1e-05]
[1739152532339,0.07665368,2577.4,2577.1,1e-05]
[1739152532519,3.87922,2577.9,2577.3,3.88002]
[1739152532719,3.87922,2577.9,2577.2,4.71056]
[1739152533047,3.87939,2577.8,2577.2,5.569659]
[1739152533217,3.87903,2578.0,2577.3,3.87991]
[1739152533418,0.2,2579.3,2577.3,1.3805]
[1739152533628,0.7809,2579.2,2577.8,0.8305]
[1739152533843,3.8788,2578.2,2577.8,0.8305]
[1739152534408,3.87813,2578.6,2577.9,3.87901]
[1739152534612,3.87813,2578.6,2577.8,1.301506]
[1739152534848,3.87823,2578.5,2577.8,4.70965]
[1739152535228,3.87852,2578.3,2577.8,0.8305]
[1739152535613,3.87831,2578.5,2577.8,4.70977]
[1739152535819,3.87821,2578.6,2577.8,4.70977]
[1739152536029,3.7809,2579.2,2577.8,0.8305]
[1739152536227,3.87864,2578.3,2577.8,0.8305]
[1739152536585,3.87883,2578.1,2577.8,0.8305]
[1739152537172,3.87883,2578.1,2577.1,1e-05]
[1739152537330,3.88018,2577.2,2577.1,1e-05]
[1739152537956,3.95231501,2577.2,2577.1,1e-05]
[1739152539752,0.07213501,2577.2,2577.1,1e-05]
[1739152540269,0.07148685,2577.2,2577.1,1e-05]
[1739152540671,3.88018,2577.2,2577.1,1e-05]
[1739152540883,3.95188021,2577.2,2577.1,1e-05]
[1739152541376,0.07170021,2577.2,2577.1,1e-05]
[1739152541676,3.88018,2577.2,2577.1,1e-05]
[1739152542176,3.95188021,2577.2,2577.1,1e-05]
[1739152542745,0.07170021,2577.2,2577.1,1e-05]
[1739152543163,3.88018,2577.2,2577.1,1e-05]
[1739152543354,3.95188021,2577.2,2577.1,1e-05]
[1739152545218,0.07170021,2577.2,2577.1,1e-05]
[1739152545416,3.95188021,2577.2,2577.1,1e-05]
[1739152545579,3.88018,2577.2,2577.1,1e-05]
[1739152545789,3.951429,2577.2,2577.1,1e-05]
[1739152546674,0.071249,2577.2,2577.1,1e-05]
[1739152547176,3.88003,2577.3,2577.1,1e-05]
[1739152547379,0.071249,2577.2,2577.1,1e-05]
[1739152547581,0.071249,2577.2,2577.1,0.81981]
[1739152548200,3.87975,2577.5,2577.1,0.81981]
[1739152548406,0.071249,2577.2,2577.1,1.289844]
[1739152548603,3.87896,2578.1,2577.5,0.8198]
[1739152548803,3.87912,2577.9,2577.5,0.8198]
[1739152549003,3.950239,2578.0,2577.5,0.8198]
[1739152549306,0.071249,2577.9,2577.6,3.87948]
[1739152549473,7.75724,2578.3,2577.6,3.87948]
[1739152549674,0.071249,2577.8,2577.6,3.87948]
[1739152549876,3.8786,2578.3,2577.7,3.87939]
[1739152550073,0.071249,2577.7,2577.6,3.87948]
[1739152550295,3.87868,2578.2,2577.6,4.7843767]
[1739152550494,0.071249,2577.7,2577.6,4.7843767]
[1739152550692,3.8786,2578.3,2577.7,3.8794]
[1739152551085,7.75722,2578.3,2577.7,3.8794]
[1739152551413,3.87869,2578.2,2577.6,0.9048967]
[1739152551710,3.87869,2578.2,2577.5,5.169377]
[1739152551711,3.87841,2578.4,2577.7,3.8793]
[1739152551879,3.87841,2578.4,2577.6,3.87944]
[1739152552085,3.87853,2578.3,2577.7,3.87936]
[1739152552288,0.071249,2578.3,2577.6,3.87944]
[1739152552825,0.071249,2578.3,2578.2,8.20980103]
[1739152552996,0.7573,2579.7,2578.2,4.70527]
[1739152552997,3.87722,2579.2,2578.2,4.70527]
[1739152553196,0.7573,2579.7,2578.5,0.8266]
[1739152553399,3.87744,2579.1,2578.5,0.8266]
[1739152553730,3.8778,2578.8,2578.5,0.8266]
[1739152553944,3.87762,2578.9,2578.1,0.8266]
[1739152554110,3.87851,2578.4,2578.1,0.8266]
[1739152554436,3.87867,2578.2,2577.5,0.8266]
[1739152554726,3.87942,2577.8,2577.5,0.8266]
[1739152554930,0.07397968,2578.1,2577.5,0.8266]
[1739152555224,0.07397149,2577.7,2577.5,0.8266]
[1739152555393,7.75758,2578.2,2577.5,0.8266]
[1739152555589,0.07397149,2577.6,2577.5,1.297234]
[1739152555787,3.87907,2578.0,2577.5,0.8266]
[1739152556046,3.87903,2578.0,2577.5,0.8266]
[1739152556365,0.07344687,2577.9,2577.5,0.8266]
[1739152556510,3.87938,2577.8,2577.5,0.8266]
[1739152556964,3.95287687,2577.7,2577.5,0.8266]
[1739152557117,0.07344687,2577.7,2577.5,0.8266]
[1739152557441,3.87999,2577.4,2577.1,1e-05]
[1739152557659,0.07331567,2577.3,2577.1,1e-05]
[1739152557810,3.87999,2577.4,2577.1,1e-05]
[1739152558005,0.07331567,2577.3,2577.1,1e-05]
[1739152558411,0.07331567,2577.3,2577.2,4.70678]
[1739152558636,3.87916,2577.9,2577.2,4.70678]
[1739152558637,3.8791,2578.0,2577.3,3.87989]
[1739152558857,0.06956769,2577.9,2577.4,3.87984]
[1739152559229,3.87839,2578.4,2577.4,0.03879162]
[1739152559427,3.87871,2578.2,2577.5,0.8266]
[1739152559627,0.7573,2578.6,2577.5,1.30112594]
[1739152559628,3.87899,2578.0,2577.5,1.30112594]
[1739152559927,0.06956769,2577.9,2577.6,3.87947]
[1739152560170,0.06956769,2577.9,2577.6,3.91826003]
[1739152560326,3.87844,2578.4,2577.6,3.91826003]
[1739152560327,3.87844,2578.4,2577.8,3.87927]
[1739152560530,3.8786,2578.3,2577.6,3.87947]
[1739152560837,3.8786,2578.3,2577.7,4.39747959]
[1739152561777,0.7573,2579.4,2577.9,0.8266]
[1739152561927,3.87684,2579.5,2578.6,3.87804]
[1739152562126,3.87704,2579.3,2578.6,7.75601]
[1739152562331,3.87704,2579.3,2578.4,4.42826]
[1739152562566,0.387684,2579.4,2578.3,0.8266]
[1739152562726,0.7573,2579.0,2578.3,0.8266]
[1739152562926,3.87729,2579.2,2578.6,3.87803]
[1739152563186,3.87661,2579.6,2578.8,0.8266]
[1739152563458,0.7573,2579.8,2579.0,3.87746]
[1739152563459,3.87627,2579.8,2579.0,3.87746]
[1739152563690,1.52255143,2580.2,2579.1,0.55]
[1739152563965,1.52255143,2580.2,2579.2,0.8266]
[1739152563966,3.87612,2579.9,2579.2,0.8266]
[1739152564126,3.8759,2580.1,2579.2,0.8266]
[1739152564488,3.87573,2580.2,2579.5,3.87657]
[1739152564691,3.8745,2581.0,2580.0,3.87596]
[1739152564832,3.8745,2581.0,2580.1,0.8266]
[1739152565033,0.77487,2581.0,2580.2,3.87555]
[1739152565263,0.7573,2581.5,2580.2,3.87555]
[1739152565533,3.87506,2580.7,2580.1,0.8266]
[1739152566191,3.87549,2580.4,2580.1,0.8266]
[1739152566606,3.87618,2579.9,2579.4,6.5]
[1739152566822,3.87551,2580.3,2579.4,6.5]
[1739152567028,3.87555,2580.3,2579.4,10.37685]
[1739152567318,0.06956769,2580.2,2579.6,0.7959]
[1739152567467,3.87602,2580.0,2579.6,0.7959]
[1739152567670,3.87641,2579.7,2579.6,0.7959]
[1739152567891,0.06956769,2579.7,2579.6,0.7959]
[1739152568097,0.06956769,2579.7,2579.4,3.87685]
[1739152568284,3.87702,2579.3,2579.0,6.5]
[1739152568482,3.87732,2579.1,2578.9,0.7959]
[1739152568682,3.87732,2579.1,2578.6,0.7959]
[1739152568888,0.06956769,2579.0,2578.6,0.7959]
[1739152569189,3.8775,2579.0,2578.6,0.7959]
[1739152569393,3.94912397,2578.9,2578.6,0.7959]
[1739152569606,3.87785,2578.8,2578.6,0.7959]
[1739152569803,0.07150397,2578.8,2578.7,4.42792]
[1739152570007,0.07150397,2578.8,2578.7,5.26259017]
[1739152570194,0.8306,2580.1,2578.7,0.7959]
[1739152570195,3.87712,2579.3,2578.7,0.7959]
[1739152570393,3.87693,2579.4,2578.7,4.6738]
[1739152570710,3.87709,2579.3,2578.7,0.7959]
[1739152570874,3.94859397,2579.3,2578.7,0.7959]
[1739152571205,3.87735,2579.1,2578.7,0.7959]
[1739152571372,3.87717,2579.2,2578.7,0.7959]
[1739152571702,3.94885397,2579.1,2578.7,0.7959]
[1739152571905,0.07150397,2579.1,2578.7,0.7959]
[1739152572274,3.94887397,2579.1,2578.7,0.7959]
[1739152572505,4.70834,2578.9,2577.9,6.5]
[1739152572810,4.70834,2578.9,2577.4,0.18367701]
[1739152572811,3.88018,2577.2,2577.1,1e-05]
[1739152572993,3.8799,2577.4,2577.1,1e-05]
[1739152573195,0.07150397,2577.2,2577.1,1e-05]